fUST/lending_fUST_20250716
["ID","MTS","AMOUNT","RATE_DAILY","PERIOD"]
[372488669,1752661853203,-1678.67,0.00020273,2]
[372488670,1752661853213,-460.0,0.00020273,2]
[372488671,1752661853222,-311.8772773,0.00020273,2]
[372488672,1752661853232,-2804.76,0.00020273,2]
[372488673,1752661853241,-460.0,0.00020273,2]
[372488674,1752661853251,-460.0,0.00020273,2]
[372488675,1752661853260,-880.95,0.00020273,2]
[372488676,1752661853270,-460.0,0.00020273,2]
[372488677,1752661853280,-460.0,0.00020273,2]
[372488678,1752661853289,-496.68,0.00020273,2]
[372488679,1752661853299,-460.0,0.00020273,2]
[372488680,1752661853308,-460.0,0.00020273,2]
[372488681,1752661853318,-460.0,0.00020273,2]
[372488682,1752661853327,-547.27,0.00020273,2]
[372488683,1752661853337,-460.0,0.00020273,2]
[372488684,1752661853347,-460.0,0.00020273,2]
[372488685,1752661853357,-460.0,0.00020273,2]
[372488686,1752661853366,-460.0,0.00020273,2]
[372488687,1752661853376,-460.0,0.00020273,2]
[372488688,1752661853386,-1611.13,0.00020273,2]
[372488689,1752661853395,-460.0,0.00020273,2]
[372488690,1752661853405,-538.41,0.00020273,2]
[372488691,1752661853414,-3033.39,0.00020273,2]
[372488692,1752661853496,-161.62909548,0.00020273,2]
[372488693,1752661853515,-1379.03,0.00020273,2]
[372488694,1752661853526,-2255.61,0.00020273,2]
[372488695,1752661853535,-531.64,0.00020273,2]
[372488696,1752661853545,-194.75,0.00020273,2]
[372488697,1752661853555,-460.0,0.00020273,2]
[372488698,1752661853565,-460.0,0.00020273,2]
[372488699,1752661853574,-460.0,0.00020273,2]
[372488700,1752661853584,-460.0,0.00020273,2]
[372488701,1752661853593,-669.07,0.00020273,2]
[372488702,1752661853603,-460.0,0.00020273,2]
[372488703,1752661853612,-654.85,0.00020273,2]
[372488704,1752661853622,-460.0,0.00020273,2]
[372488705,1752661853631,-460.0,0.00020273,2]
[372488706,1752661853641,-460.0,0.00020273,2]
[372488707,1752661853650,-160.0,0.00020284,3]
[372488708,1752661853660,-476.07036022,0.00020284,3]
[372488709,1752661853669,-12605.49131908,0.00020284,3]
[372488710,1752661853679,-160.0,0.00020284,3]
[372488711,1752661853688,-214.40824756,0.00020284,3]
[372488712,1752661853698,-151.0,0.000203,4]
[372488713,1752661853708,-1037.66765001,0.00020314,3]
[372488714,1752661853718,-1000.0,0.00020321,2]
[372488715,1752661853727,-503.18757773,0.00020321,2]
[372488716,1752661853737,-1000.0,0.00020321,2]
[372488717,1752661853746,-1680.0,0.00020383,2]
[372488718,1752661853755,-420.0,0.00020384,2]
[372488719,1752661853765,-318.0,0.00020384,2]
[372488720,1752661853775,-420.0,0.00020384,2]
[372488721,1752661853787,-151.0,0.000204,3]
[372488722,1752661853797,-1636.88,0.00020449,3]
[372488723,1752661853807,-1680.0,0.00020483,2]
[372488724,1752661853817,-1207.80108153,0.00020516,2]
[372488725,1752661853827,-633.66232133,0.00020521,2]
[372488726,1752661853836,-1037.66765001,0.00020521,3]
[372488727,1752661853846,-565.88145863,0.00020547,2]
[372488728,1752661853856,-460.0,0.00020547,2]
[372488729,1752661853868,-467.49544061,0.00020547,2]
[372488730,1752661853880,-460.0,0.00020547,2]
[372488731,1752661853891,-460.0,0.00020547,2]
[372488732,1752661853901,-460.0,0.00020547,2]
[372488733,1752661853912,-460.0,0.00020547,2]
[372488734,1752661853921,-460.0,0.00020547,2]
[372488735,1752661853931,-460.0,0.00020547,2]
[372488736,1752661853941,-460.0,0.00020547,2]
[372488737,1752661853952,-460.0,0.00020547,2]
[372488738,1752661853962,-558.10558485,0.00020547,2]
[372488739,1752661853972,-460.0,0.00020547,2]
[372488740,1752661853983,-460.0,0.00020547,2]
[372488741,1752661853993,-460.0,0.00020547,2]
[372488742,1752661854003,-460.0,0.00020547,2]
[372488743,1752661854013,-460.0,0.00020547,2]
[372488744,1752661854023,-460.0,0.00020547,2]
[372488745,1752661854032,-460.0,0.00020547,2]
[372488746,1752661854042,-460.0,0.00020547,2]
[372488747,1752661854053,-523.36572738,0.00020547,2]
[372488748,1752661854063,-460.0,0.00020547,2]
[372488749,1752661854074,-460.0,0.00020547,2]
[372488750,1752661854085,-460.0,0.00020547,2]
[372488751,1752661854095,-460.0,0.00020547,2]
[372488752,1752661854105,-468.7,0.00020547,2]
[372488753,1752661854114,-460.0,0.00020547,2]
[372488754,1752661854125,-475.84164453,0.00020547,2]
[372488755,1752661854137,-460.0,0.00020547,2]
[372488756,1752661854146,-460.0,0.00020547,2]
[372488757,1752661854156,-354.3329802,0.00020547,2]
[372488758,1752661854167,-577.88,0.00020547,2]
[372488759,1752661854177,-460.0,0.00020547,2]
[372488760,1752661854186,-461.0,0.00020547,2]
[372488761,1752661854198,-460.0,0.00020547,2]
[372488762,1752661854207,-460.0,0.00020547,2]
[372488763,1752661854217,-460.0,0.00020547,2]
[372488764,1752661854226,-460.0,0.00020547,2]
[372488765,1752661854235,-572.57400663,0.00020547,2]
[372488766,1752661854245,-460.0,0.00020547,2]
[372488767,1752661854255,-460.0,0.00020547,2]
[372488768,1752661854265,-886.16,0.00020547,2]
[372488769,1752661854275,-460.0,0.00020547,2]
[372488770,1752661854285,-307.35,0.00020547,2]
[372488771,1752661854295,-460.0,0.00020547,2]
[372488772,1752661854304,-460.0,0.00020547,2]
[372488773,1752661854314,-566.1,0.00020547,2]
[372488774,1752661854324,-460.0,0.00020547,2]
[372488775,1752661854334,-460.0,0.00020547,2]
[372488776,1752661854344,-460.0,0.00020547,2]
[372488777,1752661854353,-460.0,0.00020547,2]
[372488778,1752661854363,-460.0,0.00020547,2]
[372488779,1752661854372,-460.0,0.00020547,2]
[372488780,1752661854382,-460.0,0.00020547,2]
[372488781,1752661854392,-460.0,0.00020547,2]
[372488782,1752661854401,-460.0,0.00020547,2]
[372488783,1752661854411,-460.0,0.00020547,2]
[372488784,1752661854420,-460.0,0.00020547,2]
[372488785,1752661854429,-460.0,0.00020547,2]
[372488786,1752661854439,-460.0,0.00020547,2]
[372488787,1752661854448,-374.08228509,0.00020547,2]
[372488788,1752661854458,-460.0,0.00020547,2]
[372488789,1752661854467,-460.0,0.00020547,2]
[372488790,1752661854477,-460.0,0.00020547,2]
[372488791,1752661854487,-460.0,0.00020547,2]
[372488792,1752661854497,-460.0,0.00020547,2]
[372488793,1752661854506,-460.0,0.00020547,2]
[372488794,1752661854516,-876.74,0.00020547,2]
[372488795,1752661854526,-460.0,0.00020547,2]
[372488796,1752661854536,-704.09,0.00020547,2]
[372488797,1752661854546,-460.0,0.00020547,2]
[372488798,1752661854556,-460.0,0.00020547,2]
[372488799,1752661854566,-541.31869225,0.00020547,2]
[372488800,1752661854575,-460.0,0.00020547,2]
[372488801,1752661854586,-460.0,0.00020547,2]
[372488802,1752661854595,-460.0,0.00020547,2]
[372488803,1752661854605,-460.0,0.00020547,2]
[372488804,1752661854614,-460.0,0.00020547,2]
[372488805,1752661854624,-460.0,0.00020547,2]
[372488806,1752661854634,-460.0,0.00020547,2]
[372488807,1752661854644,-460.0,0.00020547,2]
[372488808,1752661854654,-460.0,0.00020547,2]
[372488809,1752661854663,-953.48,0.00020547,2]
[372488810,1752661854675,-460.0,0.00020547,2]
[372488811,1752661854685,-1046.68,0.00020547,2]
[372488812,1752661854694,-460.0,0.00020547,2]
[372488813,1752661854704,-460.0,0.00020547,2]
[372488814,1752661854714,-2218.72,0.00020547,2]
[372488815,1752661854724,-285.02,0.00020547,2]
[372488816,1752661854734,-460.0,0.00020547,2]
[372488817,1752661854743,-460.0,0.00020547,2]
[372488818,1752661854753,-460.0,0.00020547,2]
[372488819,1752661854763,-460.0,0.00020547,2]
[372488820,1752661854772,-460.0,0.00020547,2]
[372488821,1752661854783,-636.45,0.00020547,2]
[372488822,1752661854795,-460.0,0.00020547,2]
[372488823,1752661854805,-4842.09,0.00020547,2]
[372488824,1752661854814,-460.0,0.00020547,2]
[372488825,1752661854823,-460.0,0.00020547,2]
[372488826,1752661854834,-460.0,0.00020547,2]
[372488827,1752661854844,-460.0,0.00020547,2]
[372488828,1752661854855,-460.0,0.00020547,2]
[372488829,1752661854866,-467.04,0.00020547,2]
[372488830,1752661854877,-153.3012174,0.00020547,2]
[372488831,1752661854886,-548.86,0.00020547,2]
[372488832,1752661854895,-440.8679506,0.00020547,2]
[372488833,1752661854907,-460.0,0.00020547,2]
[372488834,1752661854916,-1506.49,0.00020547,2]
[372488835,1752661854926,-1707.39,0.00020547,2]
[372488836,1752661854936,-460.0,0.00020547,2]
[372488837,1752661854945,-460.0,0.00020547,2]
[372488838,1752661854955,-460.0,0.00020547,2]
[372488839,1752661854965,-656.21,0.00020547,2]
[372488840,1752661854975,-460.0,0.00020547,2]
[372488841,1752661854985,-460.0,0.00020547,2]
[372488842,1752661854994,-460.0,0.00020547,2]
[372488843,1752661855004,-460.0,0.00020547,2]
[372488844,1752661855013,-460.0,0.00020547,2]
[372488845,1752661855023,-460.0,0.00020547,2]
[372488846,1752661855033,-460.0,0.00020547,2]
[372488847,1752661855042,-460.0,0.00020547,2]
[372488848,1752661855053,-460.0,0.00020547,2]
[372488849,1752661855062,-460.0,0.00020547,2]
[372488850,1752661855077,-1678.67,0.00020547,2]
[372488851,1752661855093,-460.0,0.00020547,2]
[372488852,1752661855103,-2804.76,0.00020547,2]
[372488853,1752661855112,-460.0,0.00020547,2]
[372488854,1752661855121,-460.0,0.00020547,2]
[372488855,1752661855131,-880.95,0.00020547,2]
[372488856,1752661855140,-460.0,0.00020547,2]
[372488857,1752661855149,-460.0,0.00020547,2]
[372488858,1752661855158,-460.0,0.00020547,2]
[372488859,1752661855167,-460.0,0.00020547,2]
[372488860,1752661855177,-547.27,0.00020547,2]
[372488861,1752661855187,-460.0,0.00020547,2]
[372488862,1752661855196,-242.12,0.00020547,2]
[372488863,1752661855206,-460.0,0.00020547,2]
[372488864,1752661855215,-460.0,0.00020547,2]
[372488865,1752661855225,-460.0,0.00020547,2]
[372488866,1752661855234,-1611.13,0.00020547,2]
[372488867,1752661855244,-460.0,0.00020547,2]
[372488868,1752661855254,-538.41,0.00020547,2]
[372488869,1752661855264,-3033.39,0.00020547,2]
[372488870,1752661855274,-1379.03,0.00020547,2]
[372488871,1752661855284,-2255.61,0.00020547,2]
[372488872,1752661855293,-531.64,0.00020547,2]
[372488873,1752661855303,-460.0,0.00020547,2]
[372488874,1752661855312,-460.0,0.00020547,2]
[372488875,1752661855322,-460.0,0.00020547,2]
[372488876,1752661855331,-460.0,0.00020547,2]
[372488877,1752661855341,-669.07,0.00020547,2]
[372488878,1752661855350,-460.0,0.00020547,2]
[372488879,1752661855360,-654.85,0.00020547,2]
[372488880,1752661855369,-460.0,0.00020547,2]
[372488881,1752661855378,-460.0,0.00020547,2]
[372488882,1752661855387,-460.0,0.00020547,2]
[372488883,1752661855397,-1500.0,0.00020568,2]
[372488884,1752661855406,-524.40790772,0.00020568,2]
[372488885,1752661855416,-1000.0,0.00020568,2]
[372488886,1752661855425,-160.0,0.00020574,2]
[372488887,1752661855435,-160.0,0.00020583,2]
[372488888,1752661855445,-160.0,0.00020583,2]
[372488889,1752661855455,-476.07036022,0.00020583,2]
[372488890,1752661855464,-215.5496034,0.00020583,2]
[372488891,1752661855474,-838.99048831,0.00020583,2]
[372488892,1752661855483,-160.0,0.00020583,2]
[372488893,1752661855492,-214.40824756,0.00020583,2]
[372488894,1752661855501,-520.85416667,0.00020583,2]
[372488895,1752661855511,-160.0,0.00020583,2]
[372488896,1752661855520,-230.8109288,0.00020583,2]
[372488897,1752661855530,-160.0,0.00020583,2]
[372488898,1752661855539,-160.0,0.00020583,2]
[372488899,1752661855548,-12605.49131908,0.00020583,2]
[372488900,1752661855559,-160.0,0.00020583,2]
[372488901,1752661855568,-549.49136234,0.0002064,2]
[372488902,1752661855577,-260.0,0.00020686,2]
[372488903,1752661855588,-151.0,0.000207,3]
[372488904,1752661855598,-1037.66765001,0.00020728,3]
[372488905,1752661855608,-6552.40895527,0.00020739,2]
[372488906,1752661855617,-595.6464597,0.00020749,2]
[372488907,1752661855626,-2000.0,0.00020816,2]
[372488908,1752661855635,-460.0,0.00020821,2]
[372488909,1752661855645,-460.0,0.00020821,2]
[372488910,1752661855655,-314.82261584,0.00020821,2]
[372488911,1752661855664,-460.0,0.00020821,2]
[372488912,1752661855674,-460.0,0.00020821,2]
[372488913,1752661855683,-460.0,0.00020821,2]
[372488914,1752661855692,-460.0,0.00020821,2]
[372488915,1752661855701,-460.0,0.00020821,2]
[372488916,1752661855711,-460.0,0.00020821,2]
[372488917,1752661855720,-460.0,0.00020821,2]
[372488918,1752661855731,-460.0,0.00020821,2]
[372488919,1752661855740,-460.0,0.00020821,2]
[372488920,1752661855750,-460.0,0.00020821,2]
[372488921,1752661855759,-460.0,0.00020821,2]
[372488922,1752661855769,-460.0,0.00020821,2]
[372488923,1752661855779,-460.0,0.00020821,2]
[372488924,1752661855792,-460.0,0.00020821,2]
[372488925,1752661855802,-460.0,0.00020821,2]
[372488926,1752661855811,-460.0,0.00020821,2]
[372488927,1752661855821,-460.0,0.00020821,2]
[372488928,1752661855831,-460.0,0.00020821,2]
[372488929,1752661855840,-468.7,0.00020821,2]
[372488930,1752661855851,-460.0,0.00020821,2]
[372488931,1752661855862,-460.0,0.00020821,2]
[372488932,1752661855872,-577.88,0.00020821,2]
[372488933,1752661855882,-460.0,0.00020821,2]
[372488934,1752661855986,-460.0,0.00020821,2]
[372488935,1752661855997,-460.0,0.00020821,2]
[372488936,1752661856007,-460.0,0.00020821,2]
[372488937,1752661856017,-460.0,0.00020821,2]
[372488938,1752661856028,-460.0,0.00020821,2]
[372488939,1752661856038,-886.16,0.00020821,2]
[372488940,1752661856047,-460.0,0.00020821,2]
[372488941,1752661856057,-460.0,0.00020821,2]
[372488942,1752661856066,-460.0,0.00020821,2]
[372488943,1752661856076,-566.1,0.00020821,2]
[372488944,1752661856086,-460.0,0.00020821,2]
[372488945,1752661856095,-460.0,0.00020821,2]
[372488946,1752661856105,-460.0,0.00020821,2]
[372488947,1752661856114,-460.0,0.00020821,2]
[372488948,1752661856124,-460.0,0.00020821,2]
[372488949,1752661856134,-460.0,0.00020821,2]
[372488950,1752661856144,-460.0,0.00020821,2]
[372488951,1752661856153,-460.0,0.00020821,2]
[372488952,1752661856164,-460.0,0.00020821,2]
[372488953,1752661856175,-460.0,0.00020821,2]
[372488954,1752661856185,-335.05892552,0.00020821,2]
[372488955,1752661856196,-460.0,0.00020821,2]
[372488956,1752661856206,-460.0,0.00020821,2]
[372488957,1752661856215,-460.0,0.00020821,2]
[372488958,1752661856225,-525.86,0.00020821,2]
[372488959,1752661856235,-460.0,0.00020821,2]
[372488960,1752661856245,-460.0,0.00020821,2]
[372488961,1752661856255,-190.68232498,0.00020821,2]
[372488962,1752661856264,-460.0,0.00020821,2]
[372488963,1752661856274,-876.74,0.00020821,2]
[372488964,1752661856284,-460.0,0.00020821,2]
[372488965,1752661856302,-704.09,0.00020821,2]
[372488966,1752661856315,-460.0,0.00020821,2]
[372488967,1752661856325,-460.0,0.00020821,2]
[372488968,1752661856335,-460.0,0.00020821,2]
[372488969,1752661856344,-460.0,0.00020821,2]
[372488970,1752661856354,-460.0,0.00020821,2]
[372488971,1752661856364,-460.0,0.00020821,2]
[372488972,1752661856374,-460.0,0.00020821,2]
[372488973,1752661856384,-460.0,0.00020821,2]
[372488974,1752661856393,-460.0,0.00020821,2]
[372488975,1752661856403,-460.0,0.00020821,2]
[372488976,1752661856412,-460.0,0.00020821,2]
[372488977,1752661856422,-953.48,0.00020821,2]
[372488978,1752661856431,-460.0,0.00020821,2]
[372488979,1752661856441,-1046.68,0.00020821,2]
[372488980,1752661856450,-460.0,0.00020821,2]
[372488981,1752661856460,-460.0,0.00020821,2]
[372488982,1752661856470,-2218.72,0.00020821,2]
[372488983,1752661856482,-460.0,0.00020821,2]
[372488984,1752661856492,-460.0,0.00020821,2]
[372488985,1752661856502,-460.0,0.00020821,2]
[372488986,1752661856512,-460.0,0.00020821,2]
[372488987,1752661856522,-460.0,0.00020821,2]
[372488988,1752661856532,-636.45,0.00020821,2]
[372488989,1752661856542,-427.89599013,0.00020821,2]
[372488990,1752661856552,-4842.09,0.00020821,2]
[372488991,1752661856561,-398.50384454,0.00020821,2]
[372488992,1752661856571,-460.0,0.00020821,2]
[372488993,1752661856581,-460.0,0.00020821,2]
[372488994,1752661856591,-460.0,0.00020821,2]
[372488995,1752661856601,-460.0,0.00020821,2]
[372488996,1752661856610,-467.04,0.00020821,2]
[372488997,1752661856620,-548.86,0.00020821,2]
[372488998,1752661856629,-460.0,0.00020821,2]
[372488999,1752661856639,-1506.49,0.00020821,2]
[372489000,1752661856649,-1707.39,0.00020821,2]
[372489001,1752661856658,-460.0,0.00020821,2]
[372489002,1752661856668,-460.0,0.00020821,2]
[372489003,1752661856678,-460.0,0.00020821,2]
[372489004,1752661856687,-656.21,0.00020821,2]
[372489005,1752661856697,-460.0,0.00020821,2]
[372489006,1752661856706,-460.0,0.00020821,2]
[372489007,1752661856716,-460.0,0.00020821,2]
[372489008,1752661856725,-460.0,0.00020821,2]
[372489009,1752661856735,-460.0,0.00020821,2]
[372489010,1752661856745,-460.0,0.00020821,2]
[372489011,1752661856755,-460.0,0.00020821,2]
[372489012,1752661856765,-460.0,0.00020821,2]
[372489013,1752661856775,-460.0,0.00020821,2]
[372489014,1752661856787,-460.0,0.00020821,2]
[372489015,1752661856798,-1678.67,0.00020821,2]
[372489016,1752661856808,-460.0,0.00020821,2]
[372489017,1752661856818,-2804.76,0.00020821,2]
[372489018,1752661856827,-192.0668854,0.00020821,2]
[372489019,1752661856837,-460.0,0.00020821,2]
[372489020,1752661856847,-880.95,0.00020821,2]
[372489021,1752661856858,-460.0,0.00020821,2]
[372489022,1752661856872,-460.0,0.00020821,2]
[372489023,1752661856884,-460.0,0.00020821,2]
[372489024,1752661856894,-460.0,0.00020821,2]
[372489025,1752661856903,-547.27,0.00020821,2]
[372489026,1752661856912,-460.0,0.00020821,2]
[372489027,1752661856921,-460.0,0.00020821,2]
[372489028,1752661856931,-460.0,0.00020821,2]
[372489029,1752661856941,-460.0,0.00020821,2]
[372489030,1752661856950,-1611.13,0.00020821,2]
[372489031,1752661856960,-460.0,0.00020821,2]
[372489032,1752661856970,-538.41,0.00020821,2]
[372489033,1752661856979,-3033.39,0.00020821,2]
[372489034,1752661856991,-1379.03,0.00020821,2]
[372489035,1752661857001,-2255.61,0.00020821,2]
[372489036,1752661857010,-531.64,0.00020821,2]
[372489037,1752661857019,-460.0,0.00020821,2]
[372489038,1752661857029,-460.0,0.00020821,2]
[372489039,1752661857039,-460.0,0.00020821,2]
[372489040,1752661857049,-669.07,0.00020821,2]
[372489041,1752661857059,-460.0,0.00020821,2]
[372489042,1752661857068,-654.85,0.00020821,2]
[372489043,1752661857078,-460.0,0.00020821,2]
[372489044,1752661857089,-460.0,0.00020821,2]
[372489045,1752661857099,-405.78408172,0.00020821,2]
[372489046,1752661857108,-293.70857859,0.00020868,2]
[372489047,1752661857118,-1498.34621255,0.00020868,2]
[372489048,1752661857127,-249.84316173,0.000209,2]
[372489049,1752661857137,-500.54509105,0.0002093,2]
[372489050,1752661857147,-163.42539539,0.0002093,2]
[372489051,1752661857158,-500.0,0.0002093,2]
[372489052,1752661857169,-500.0,0.0002093,2]
[372489053,1752661857179,-153.72017957,0.0002093,2]
[372489054,1752661857188,-1037.66765001,0.00020934,4]
[372489055,1752661857197,-500.0,0.00020954,2]
[372489056,1752661857207,-500.0,0.00020973,2]
[372489057,1752661857217,-503.14949113,0.00020973,2]
[372489058,1752661857226,-500.85113653,0.00020973,2]
[372489059,1752661857236,-503.33669226,0.00020973,2]
[372489060,1752661857245,-170.4186172,0.00020995,2]
[372489061,1752661857255,-1207.80108153,0.00020995,2]
[372489062,1752661857264,-10000.0,0.00021,5]
[372489063,1752661857273,-3920.39356113,0.00021,2]
[372489064,1752661857283,-269.95567869,0.00021,2]
[372489065,1752661857292,-169.10995551,0.00021,10]
[372489066,1752661857308,-35000.0,0.00021,2]
[372489067,1752661857325,-184792.66293396,0.00021,3]
[372489068,1752661857334,-780.0,0.00021,2]
[372489069,1752661857343,-744.264,0.00021033,2]
[372489070,1752661857353,-178.37735677,0.00021033,2]
[372489071,1752661857363,-500.0,0.00021044,2]
[372489072,1752661857373,-596.60008235,0.00021095,2]
[372489073,1752661857382,-460.0,0.00021095,2]
[372489074,1752661857392,-460.0,0.00021095,2]
[372489075,1752661857402,-460.0,0.00021095,2]
[372489076,1752661857411,-460.0,0.00021095,2]
[372489077,1752661857421,-460.0,0.00021095,2]
[372489078,1752661857430,-460.0,0.00021095,2]
[372489079,1752661857439,-460.0,0.00021095,2]
[372489080,1752661857449,-460.0,0.00021095,2]
[372489081,1752661857459,-460.0,0.00021095,2]
[372489082,1752661857469,-460.0,0.00021095,2]
[372489083,1752661857479,-460.0,0.00021095,2]
[372489084,1752661857488,-460.0,0.00021095,2]
[372489085,1752661857499,-460.0,0.00021095,2]
[372489086,1752661857507,-460.0,0.00021095,2]
[372489087,1752661857517,-460.0,0.00021095,2]
[372489088,1752661857527,-460.0,0.00021095,2]
[372489089,1752661857536,-460.0,0.00021095,2]
[372489090,1752661857545,-460.0,0.00021095,2]
[372489091,1752661857555,-221.55568455,0.00021095,2]
[372489092,1752661857565,-468.7,0.00021095,2]
[372489093,1752661857575,-460.0,0.00021095,2]
[372489094,1752661857585,-460.0,0.00021095,2]
[372489095,1752661857594,-577.88,0.00021095,2]
[372489096,1752661857604,-460.0,0.00021095,2]
[372489097,1752661857613,-460.0,0.00021095,2]
[372489098,1752661857623,-460.0,0.00021095,2]
[372489099,1752661857633,-460.0,0.00021095,2]
[372489100,1752661857642,-460.0,0.00021095,2]
[372489101,1752661857652,-886.16,0.00021095,2]
[372489102,1752661857661,-460.0,0.00021095,2]
[372489103,1752661857671,-460.0,0.00021095,2]
[372489104,1752661857681,-460.0,0.00021095,2]
[372489105,1752661857690,-566.1,0.00021095,2]
[372489106,1752661857700,-460.0,0.00021095,2]
[372489107,1752661857710,-460.0,0.00021095,2]
[372489108,1752661857719,-460.0,0.00021095,2]
[372489109,1752661857728,-321.04742069,0.00021095,2]
[372489110,1752661857738,-460.0,0.00021095,2]
[372489111,1752661857748,-460.0,0.00021095,2]
[372489112,1752661857757,-460.0,0.00021095,2]
[372489113,1752661857768,-460.0,0.00021095,2]
[372489114,1752661857777,-460.0,0.00021095,2]
[372489115,1752661857788,-460.0,0.00021095,2]
[372489116,1752661857799,-460.0,0.00021095,2]
[372489117,1752661857808,-460.0,0.00021095,2]
[372489118,1752661857818,-481.90635901,0.00021095,2]
[372489119,1752661857827,-460.0,0.00021095,2]
[372489120,1752661857837,-460.0,0.00021095,2]
[372489121,1752661857846,-876.74,0.00021095,2]
[372489122,1752661857856,-460.0,0.00021095,2]
[372489123,1752661857866,-704.09,0.00021095,2]
[372489124,1752661857875,-460.0,0.00021095,2]
[372489125,1752661857886,-582.87,0.00021095,2]
[372489126,1752661857896,-460.0,0.00021095,2]
[372489127,1752661857906,-460.0,0.00021095,2]
[372489128,1752661857916,-465.12878954,0.00021095,2]
[372489129,1752661857926,-460.0,0.00021095,2]
[372489130,1752661857936,-460.0,0.00021095,2]
[372489131,1752661857946,-460.0,0.00021095,2]
[372489132,1752661857956,-460.0,0.00021095,2]
[372489133,1752661857965,-152.29115071,0.00021095,2]
[372489134,1752661857975,-460.0,0.00021095,2]
[372489135,1752661857985,-953.48,0.00021095,2]
[372489136,1752661857995,-460.0,0.00021095,2]
[372489137,1752661858005,-1046.68,0.00021095,2]
[372489138,1752661858014,-460.0,0.00021095,2]
[372489139,1752661858024,-460.0,0.00021095,2]
[372489140,1752661858033,-2218.72,0.00021095,2]
[372489141,1752661858043,-460.0,0.00021095,2]
[372489142,1752661858052,-460.0,0.00021095,2]
[372489143,1752661858061,-460.0,0.00021095,2]
[372489144,1752661858071,-460.0,0.00021095,2]
[372489145,1752661858081,-636.45,0.00021095,2]
[372489146,1752661858091,-4842.09,0.00021095,2]
[372489147,1752661858101,-460.0,0.00021095,2]
[372489148,1752661858111,-460.0,0.00021095,2]
[372489149,1752661858120,-460.0,0.00021095,2]
[372489150,1752661858130,-460.0,0.00021095,2]
[372489151,1752661858139,-467.04,0.00021095,2]
[372489152,1752661858148,-548.86,0.00021095,2]
[372489153,1752661858158,-460.0,0.00021095,2]
[372489154,1752661858167,-1506.49,0.00021095,2]
[372489155,1752661858248,-1707.39,0.00021095,2]
[372489156,1752661858269,-460.0,0.00021095,2]
[372489157,1752661858279,-460.0,0.00021095,2]
[372489158,1752661858289,-460.0,0.00021095,2]
[372489159,1752661858299,-656.21,0.00021095,2]
[372489160,1752661858308,-460.0,0.00021095,2]
[372489161,1752661858318,-460.0,0.00021095,2]
[372489162,1752661858327,-460.0,0.00021095,2]
[372489163,1752661858337,-460.0,0.00021095,2]
[372489164,1752661858346,-460.0,0.00021095,2]
[372489165,1752661858356,-460.0,0.00021095,2]
[372489166,1752661858365,-460.0,0.00021095,2]
[372489167,1752661858375,-460.0,0.00021095,2]
[372489168,1752661858384,-464.78572214,0.00021095,2]